[Event "25th Magistral Barcelona 2020"]
[Site "Barcelona"]
[Date "2020.12.02"]
[Round "1.1"]
[White "Batsiashvili, Nino"]
[Black "Munoz, Miguel"]
[Result "1/2-1/2"]
[ECO "A56"]
[WhiteElo "2460"]
[BlackElo "2442"]
[Annotator "ChessBase"]
[PlyCount "96"]
[EventDate "2020.12.02"]
[EventType "tourn"]
[EventCountry "ESP"]
[SourceTitle "playchess.com"]
[Source "ChessBase"]
[SourceQuality "1"]
[TimeControl "5400+30"]

1. d4 Nf6 2. c4 c5 3. Nf3 g6 4. Nc3 Bg7 5. e4 O-O 6. h3 d6 7. Be3 Nc6 8. d5 Na5 9. Bd3 a6 10. O-O e5 11. Re1 Ne8 12. Nh2 f5 13. exf5 gxf5 14. f4 e4 15. Bf1 Bd7 16. Qd2 Rb8 17. Rab1 b5 18. cxb5 axb5 19. b4 cxb4 20. Rxb4 Nc7 21. Rbb1 Qf6 22. Rec1 Nc4 23. Bxc4 bxc4 24. Nf1 Rxb1 25. Nxb1 Qf7 26. Nc3 Bxc3 27. Qxc3 Nxd5 28. Qxc4 Ra8 29. Rd1 Nxe3 30. Nxe3 Qxc4 31. Nxc4 Be6 32. Ne3 Ra3 33. Rxd6 Kf7 34. Nc2 Rxa2 35. Nd4 Rd2 36. Rxe6 Rxd4 37. Re5 Kf6 38. g4 fxg4 39. hxg4 e3 40. Rf5+ Kg6 41. Kf1 Rd2 42. Ke1 Rf2 43. Rg5+ Kh6 44. Rh5+ Kg7 45. f5 Rf4 46. Ke2 Rxg4 47. Kxe3 Kf6 48. Rxh7 Kxf5 1/2-1/2

[Event "25th Magistral Barcelona 2020"]
[Site "Barcelona"]
[Date "2020.12.02"]
[Round "1.2"]
[White "Peralta, Fernando"]
[Black "Lopez Martinez, Josep Manuel"]
[Result "1/2-1/2"]
[ECO "D87"]
[WhiteElo "2586"]
[BlackElo "2542"]
[Annotator "ChessBase"]
[PlyCount "61"]
[EventDate "2020.12.02"]
[EventType "tourn"]
[EventCountry "ESP"]
[SourceTitle "playchess.com"]
[Source "ChessBase"]
[SourceQuality "1"]
[TimeControl "5400+30"]

1. d4 {[%emt 0:00:00]} Nf6 {[%emt 0:00:13]} 2. c4 {[%emt 0:00:00]} g6 {[%emt 0:00:35]} 3. Nc3 {[%emt 0:00:19]} d5 {[%emt 0:00:18]} 4. cxd5 {[%emt 0:00:32]} Nxd5 {[%emt 0:00:16]} 5. e4 {[%emt 0:00:05]} Nxc3 {[%emt 0:00:10]} 6. bxc3 {[%emt 0:00:04]} Bg7 {[%emt 0:00:10]} 7. Bc4 {[%emt 0:00:17]} O-O {[%emt 0:00:38]} 8. Ne2 {[%emt 0:00:06]} c5 {[%emt 0:00:25]} 9. O-O {[%emt 0:00:22]} Nc6 {[%emt 0:00:33]} 10. Be3 {[%emt 0:00:06]} b6 {[%emt 0:00:28]} 11. Rc1 {[%emt 0:01:54]} Bb7 {[%emt 0:01:43]} 12. d5 {[%emt 0:00:23]} Ne5 {[%emt 0:03:28]} 13. Bb3 {[%emt 0:00:06]} Qd6 {[%emt 0:19:56]} 14. c4 {[%emt 0:10:25]} Ng4 {[%emt 0:08:27]} 15. Bf4 {[%emt 0:00:27]} Be5 {[%emt 0:01:09]} 16. Bxe5 {[%emt 0:13:14]} Qxe5 {[%emt 0:00:15]} 17. Ng3 {[%emt 0:00:16]} Qf4 {[%emt 0:00:57]} 18. Rc3 {[%emt 0:14:21]} e6 {[%emt 0:10:26]} 19. dxe6 {[%emt 0:05:49]} Ne5 {[%emt 0:04:00]} 20. exf7+ {[%emt 0:03:46]} Rxf7 {[%emt 0:00:25]} 21. Qc1 {[%emt 0:04:25]} Qh4 {[%emt 0:03:30]} 22. f4 {[%emt 0:03:51]} Raf8 {[%emt 0:00:33]} 23. f5 {[%emt 0:09:04]} Rd8 {[%emt 0:02:43]} 24. Bc2 {[%emt 0:15:22]} Ba6 {[%emt 0:29:50]} 25. Rf4 Qh6 {[%emt 0:03:16]} 26. Nf1 {[%emt 0:03:42]} Bxc4 {[%emt 0:02:57]} 27. Rh3 {[%emt 0:01:33]} Qg5 {[%emt 0:01:10]} 28. Rg3 {[%emt 0:01:07]} Qh6 {[%emt 0:00:14]} 29. Rh3 {[%emt 0:03:05]} Qg5 {[%emt 0:00:09]} 30. Rg3 {[%emt 0:01:06]} Qh6 {[%emt 0:00:09]} 31. Rh3 {[%emt 0:00:07]} 1/2-1/2

[Event "25th Magistral Barcelona 2020"]
[Site "Barcelona"]
[Date "2020.12.02"]
[Round "1.3"]
[White "Alonso Rosell, Alvar"]
[Black "Grigoryan, Karen H."]
[Result "1/2-1/2"]
[ECO "A07"]
[WhiteElo "2552"]
[BlackElo "2659"]
[Annotator "ChessBase"]
[PlyCount "87"]
[EventDate "2020.12.02"]
[EventType "tourn"]
[EventCountry "ESP"]
[SourceTitle "playchess.com"]
[Source "ChessBase"]
[SourceQuality "1"]
[TimeControl "5400+30"]

1. Nf3 {[%emt 0:00:00]} Nf6 {[%emt 0:00:07]} 2. g3 {[%emt 0:00:00]} d5 {[%emt 0:00:22]} 3. Bg2 {[%emt 0:00:00]} c6 {[%emt 0:02:22]} 4. O-O {[%emt 0:00:20]} Bg4 {[%emt 0:00:17]} 5. h3 {[%emt 0:07:00]} Bxf3 {[%emt 0:02:27]} 6. Bxf3 {[%emt 0:00:03]} e5 {[%emt 0:00:16]} 7. d3 {[%emt 0:00:23]} Bc5 {[%emt 0:01:24]} 8. Nd2 {[%emt 0:01:25]} Nbd7 {[%emt 0:07:53]} 9. e4 {[%emt 0:04:49]} dxe4 {[%emt 0:01:05]} 10. dxe4 {[%emt 0:04:13]} O-O {[%emt 0:07:08]} 11. Qe2 {[%emt 0:03:18]} b5 {[%emt 0:02:02]} 12. a4 {[%emt 0:01:46]} a6 {[%emt 0:00:14]} 13. c3 {[%emt 0:14:44]} Nb6 {[%emt 0:12:05]} 14. axb5 {[%emt 0:13:02]} axb5 {[%emt 0:00:33]} 15. Rxa8 {[%emt 0:01:58]} Qxa8 {[%emt 0:00:08]} 16. b4 {[%emt 0:01:33]} Be7 {[%emt 0:00:13]} 17. Qe3 {[%emt 0:00:38]} Nfd7 {[%emt 0:04:01]} 18. Be2 {[%emt 0:16:55]} Qa4 {[%emt 0:10:20]} 19. Nf3 {[%emt 0:11:00]} c5 {[%emt 0:04:29]} 20. bxc5 {[%emt 0:03:36]} Nc4 {[%emt 0:00:18]} 21. Bxc4 {[%emt 0:01:34]} bxc4 {[%emt 0:00:34]} 22. Qe2 {[%emt 0:05:05]} Bxc5 {[%emt 0:04:50]} 23. Be3 {[%emt 0:00:17]} Bxe3 {[%emt 0:20:50]} 24. Qxe3 {[%emt 0:00:05]} Rb8 {[%emt 0:05:39]} 25. Qg5 {[%emt 0:04:24]} f6 {[%emt 0:02:27]} 26. Qg4 {[%emt 0:00:38]} Nc5 {[%emt 0:01:08]} 27. Nh4 {[%emt 0:00:33]} Qc2 {[%emt 0:05:15]} 28. Nf5 {[%emt 0:01:53]} g6 {[%emt 0:00:10]} 29. Ne7+ {[%emt 0:02:02]} Kf7 {[%emt 0:00:19]} 30. Nc6 {[%emt 0:00:04]} Ra8 {[%emt 0:02:21]} 31. Qf3 {[%emt 0:00:12]} Kg7 {[%emt 0:02:07]} 32. Qe3 {[%emt 0:00:04]} Nd3 {[%emt 0:01:10]} 33. Qb6 {[%emt 0:00:29]} Qb2 {[%emt 0:01:19]} 34. Qc7+ {[%emt 0:01:56]} Kh6 {[%emt 0:00:04]} 35. Qf7 {[%emt 0:00:45]} Ra1 {[%emt 0:00:46]} 36. Qxf6 {[%emt 0:00:22]} Rxf1+ {[%emt 0:00:26]} 37. Kxf1 {[%emt 0:00:02]} Qb1+ {[%emt 0:00:29]} 38. Kg2 {[%emt 0:00:04]} Ne1+ {[%emt 0:00:06]} 39. Kh2 {[%emt 0:00:49]} Qxe4 {[%emt 0:00:12]} 40. Qf8+ {[%emt 0:00:44]} Kg5 {[%emt 0:00:43]} 41. Qe7+ {[%emt 0:00:26]} Kh6 {[%emt 0:00:07]} 42. Qf8+ {[%emt 0:00:07]} Kg5 {[%emt 0:00:05]} 43. Qe7+ {[%emt 0:00:03]} Kh6 {[%emt 0:00:04]} 44. Qf8+ {[%emt 0:00:05]} 1/2-1/2

[Event "25th Magistral Barcelona 2020"]
[Site "Barcelona"]
[Date "2020.12.02"]
[Round "1.4"]
[White "Ayats Llobera, Gerard"]
[Black "Daulyte-Cornette, Deimante"]
[Result "1-0"]
[ECO "B32"]
[WhiteElo "2400"]
[BlackElo "2400"]
[Annotator "NA"]
[PlyCount "61"]
[EventDate "2020.12.02"]
[EventType "tourn"]
[EventCountry "ESP"]
[SourceTitle "playchess.com"]
[Source "ChessBase"]
[SourceQuality "1"]
[TimeControl "5400+30"]

1. e4 {[%emt 0:00:00]} c5 {[%emt 0:00:00]} 2. Nf3 {[%emt 0:00:00]} Nc6 {[%emt 0:00:00]} 3. d4 {[%emt 0:00:00]} cxd4 {[%emt 0:00:00]} 4. Nxd4 {[%emt 0:00:00]} e5 {[%emt 0:00:01]} 5. Nb5 {[%emt 0:00:00]} d6 {[%emt 0:00:08]} 6. c4 {[%emt 0:00:06]} Be6 {[%emt 0:00:50]} 7. N5c3 {[%emt 0:01:15]} Rc8 {[%emt 0:04:13]} 8. Bd3 {[%emt 0:03:53]} g6 {[%emt 0:03:22]} 9. h4 {[%emt 0:00:55]} Nf6 {[%emt 0:04:07]} 10. Nd5 {[%emt 0:02:29]} Bg7 {[%emt 0:15:20]} 11. Nbc3 {[%emt 0:00:42]} Nd7 {[%emt 0:06:47]} (11... a6 $11) 12. Bg5 {[%emt 0:23:59]} f6 {[%emt 0:05:17]} 13. Be3 {[%emt 0:01:02]} h5 {[%emt 0:09:24]} 14. Nb5 {[%emt 0:12:32]} Nc5 15. Bc2 {[%emt 0:03:22]} Bf8 {[%emt 0:05:35]} 16. b4 {[%emt 0:06:13]} Nd7 {[%emt 0:01:43]} 17. Nxa7 {[%emt 0:22:58]} Nxa7 {[%emt 0:05:18]} 18. Bxa7 $16 {[%emt 0:23:00]} b6 {[%emt 0:10:24]} 19. Ba4 {[%emt 0:01:07]} Rxc4 {[%emt 0:12:17]} 20. Bxb6 {[%emt 0:02:14]} Qa8 {[%emt 0:03:04]} 21. O-O {[%emt 0:14:25]} Bxd5 {[%emt 0:03:59]} 22. exd5 {[%emt 0:00:01]} Rxb4 {[%emt 0:00:57]} 23. Bc6 {[%emt 0:00:08]} Qa3 {[%emt 0:03:25]} 24. Qc2 {[%emt 0:01:36]} Rxb6 {[%emt 0:09:43]} 25. Qxg6+ {[%emt 0:00:07]} Ke7 {[%emt 0:00:02]} 26. Bxd7 {[%emt 0:00:11]} Kxd7 {[%emt 0:01:39]} 27. Qf5+ {[%emt 0:02:44]} Ke8 {[%emt 0:00:43]} 28. Qe6+ {[%emt 0:00:16]} Be7 {[%emt 0:00:27]} 29. Rac1 {[%emt 0:00:12]} Rb8 {[%emt 0:00:19]} 30. Rc7 {[%emt 0:00:07]} Rh7 {[%emt 0:00:12]} 31. Qg8+ {[%emt 0:00:06]} 1-0

[Event "25th Magistral Barcelona 2020"]
[Site "Barcelona"]
[Date "2020.12.02"]
[Round "1.5"]
[White "Milliet, Sophie"]
[Black "Narciso Dublan, Marc"]
[Result "0-1"]
[ECO "C41"]
[WhiteElo "2401"]
[BlackElo "2492"]
[Annotator "ChessBase"]
[PlyCount "90"]
[EventDate "2020.12.02"]
[EventType "tourn"]
[EventCountry "ESP"]
[SourceTitle "playchess.com"]
[Source "ChessBase"]
[SourceQuality "1"]
[TimeControl "5400+30"]

1. e4 {[%emt 0:00:00]} d6 {[%emt 0:00:00]} 2. d4 {[%emt 0:00:00]} Nf6 {[%emt 0:00:06]} 3. Nc3 {[%emt 0:00:00]} e5 {[%emt 0:00:25]} 4. Nf3 {[%emt 0:00:00]} Nbd7 {[%emt 0:00:27]} 5. Bc4 {[%emt 0:00:06]} Be7 {[%emt 0:00:22]} 6. O-O {[%emt 0:00:12]} O-O {[%emt 0:00:22]} 7. a4 {[%emt 0:00:40]} c6 {[%emt 0:00:42]} 8. Ba2 {[%emt 0:07:07]} h6 {[%emt 0:06:40]} 9. Re1 {[%emt 0:03:43]} Re8 {[%emt 0:00:32]} 10. h3 {[%emt 0:02:10]} Bf8 {[%emt 0:00:30]} 11. Be3 {[%emt 0:11:35]} b6 {[%emt 0:00:42]} 12. d5 {[%emt 0:04:49]} cxd5 {[%emt 0:00:37]} 13. Bxd5 {[%emt 0:00:42]} Nxd5 {[%emt 0:01:31]} 14. Nxd5 {[%emt 0:00:16]} Nf6 {[%emt 0:02:14]} 15. a5 {[%emt 0:13:34]} Nxd5 {[%emt 0:11:54]} 16. Qxd5 {[%emt 0:00:23]} Be6 {[%emt 0:00:15]} 17. Qb5 {[%emt 0:03:22]} a6 {[%emt 0:01:01]} 18. Qxb6 {[%emt 0:13:15]} Qc8 {[%emt 0:03:27]} 19. Bd2 {[%emt 0:24:35]} Rb8 {[%emt 0:04:09]} 20. Qe3 {[%emt 0:01:04]} Rxb2 {[%emt 0:00:18]} 21. Qd3 {[%emt 0:02:10]} Rxc2 {[%emt 0:09:48]} 22. Rec1 {[%emt 0:00:36]} Rxc1+ {[%emt 0:01:08]} 23. Rxc1 {[%emt 0:00:04]} Qa8 {[%emt 0:00:23]} 24. Rb1 {[%emt 0:06:17]} Rc8 {[%emt 0:08:13]} 25. Rb6 {[%emt 0:00:13]} Bc4 {[%emt 0:00:52]} 26. Qb1 {[%emt 0:01:22]} Bb5 {[%emt 0:01:09]} 27. Be3 {[%emt 0:01:59]} Bc6 {[%emt 0:21:06]} 28. Nd2 {[%emt 0:01:12]} d5 {[%emt 0:00:56]} 29. exd5 {[%emt 0:00:11]} Bxd5 {[%emt 0:00:05]} 30. Qf1 {[%emt 0:01:05]} Rc6 {[%emt 0:00:21]} 31. f3 {[%emt 0:01:29]} Rxb6 {[%emt 0:02:59]} 32. axb6 {[%emt 0:00:05]} a5 {[%emt 0:00:12]} 33. Qa1 {[%emt 0:01:07]} a4 {[%emt 0:04:14]} 34. Qxe5 {[%emt 0:00:31]} a3 {[%emt 0:00:13]} 35. Bd4 {[%emt 0:00:08]} a2 {[%emt 0:00:29]} 36. Ne4 {[%emt 0:01:19]} Qc6 37. b7 {[%emt 0:00:38]} Qxb7 {[%emt 0:08:17]} 38. Nf6+ {[%emt 0:00:01]} gxf6 {[%emt 0:00:32]} 39. Qxf6 {[%emt 0:00:11]} Qb1+ {[%emt 0:00:28]} 40. Kh2 {[%emt 0:00:30]} Qh7 {[%emt 0:00:29]} 41. Qe5 {[%emt 0:00:31]} Be6 {[%emt 0:00:38]} 42. f4 {[%emt 0:01:17]} h5 {[%emt 0:01:02]} 43. Ba1 {[%emt 0:00:24]} Qh6 {[%emt 0:00:31]} 44. f5 {[%emt 0:00:29]} Bd7 {[%emt 0:01:39]} 45. Kh1 {[%emt 0:00:37]} Bxf5 {[%emt 0:03:23]} 0-1

[Event "25th Magistral Barcelona 2020"]
[Site "Barcelona"]
[Date "2020.12.03"]
[Round "2.1"]
[White "Munoz, Miguel"]
[Black "Narciso Dublan, Marc"]
[Result "1/2-1/2"]
[ECO "B00"]
[WhiteElo "2442"]
[BlackElo "2492"]
[Annotator "ChessBase"]
[PlyCount "63"]
[EventDate "2020.12.02"]
[EventType "tourn"]
[EventCountry "ESP"]
[SourceTitle "playchess.com"]
[Source "ChessBase"]
[SourceQuality "1"]
[TimeControl "5400+30"]

1. e4 d6 2. g3 e5 3. Bg2 Nf6 4. Ne2 c5 5. c3 Be7 6. d4 O-O 7. O-O b5 8. Bg5 Nbd7 9. dxe5 dxe5 10. a4 b4 11. Nd2 Ba6 12. c4 Ne8 13. Bxe7 Qxe7 14. b3 Rd8 15. Qc2 Nb8 16. Rfd1 Nc6 17. Nf1 Nd4 18. Qb2 Nc7 19. Ne3 Nce6 20. Nd5 Qg5 21. Nc1 Qh5 22. Nd3 Rde8 23. f4 exf4 24. N5xf4 Nxf4 25. Nxf4 Qg5 26. Rxd4 cxd4 27. Qxd4 Qe5 28. Qxe5 Rxe5 29. Nd3 Re6 30. Nxb4 Rb8 31. Nd3 Rxb3 32. Nc5 1/2-1/2

[Event "25th Magistral Barcelona 2020"]
[Site "Barcelona"]
[Date "2020.12.03"]
[Round "2.2"]
[White "Daulyte-Cornette, Deimante"]
[Black "Milliet, Sophie"]
[Result "1/2-1/2"]
[ECO "C48"]
[WhiteElo "2400"]
[BlackElo "2401"]
[Annotator "ChessBase"]
[PlyCount "159"]
[EventDate "2020.12.02"]
[EventType "tourn"]
[EventCountry "ESP"]
[SourceTitle "playchess.com"]
[Source "ChessBase"]
[SourceQuality "1"]
[TimeControl "5400+30"]

1. e4 {[%emt 0:00:00]} e5 {[%emt 0:00:00]} 2. Nf3 {[%emt 0:00:00]} Nc6 {[%emt 0:00:00]} 3. Nc3 Nf6 {[%emt 0:00:00]} 4. Bb5 {[%emt 0:00:00]} Nd4 {[%emt 0:00:12]} 5. O-O {[%emt 0:00:08]} c6 {[%emt 0:07:08]} 6. Bd3 {[%emt 0:00:27]} Nxf3+ {[%emt 0:00:30]} 7. Qxf3 {[%emt 0:00:07]} Bd6 {[%emt 0:00:05]} 8. Bc4 {[%emt 0:05:58]} Bc7 {[%emt 0:08:20]} 9. d3 {[%emt 0:05:12]} h6 {[%emt 0:02:39]} 10. h3 d6 {[%emt 0:13:09]} 11. Ne2 {[%emt 0:11:41]} O-O 12. g4 {[%emt 0:05:43]} d5 {[%emt 0:03:18]} 13. Bb3 dxe4 {[%emt 0:02:12]} 14. dxe4 {[%emt 0:00:30]} Nd7 {[%emt 0:10:28]} 15. Be3 Qf6 16. Qxf6 {[%emt 0:12:38]} Nxf6 {[%emt 0:00:34]} 17. f3 {[%emt 0:00:08]} Bb6 {[%emt 0:03:00]} 18. Kf2 Nd7 19. Rfd1 {[%emt 0:16:01]} Bxe3+ {[%emt 0:04:00]} 20. Kxe3 {[%emt 0:00:06]} Nc5 {[%emt 0:00:10]} 21. Rd6 {[%emt 0:03:14]} Be6 {[%emt 0:18:44]} 22. Rad1 {[%emt 0:00:57]} a5 {[%emt 0:03:19]} 23. h4 {[%emt 0:07:58]} Rfe8 {[%emt 0:06:07]} 24. Nc1 {[%emt 0:05:11]} Bxb3 {[%emt 0:08:29]} 25. Nxb3 {[%emt 0:03:15]} Na4 26. Nd2 Nb6 {[%emt 0:01:47]} 27. Ke2 {[%emt 0:05:58]} Kf8 {[%emt 0:00:34]} 28. b3 {[%emt 0:04:26]} Ke7 {[%emt 0:05:38]} 29. Nc4 {[%emt 0:02:09]} Nxc4 {[%emt 0:00:05]} 30. Rd7+ {[%emt 0:00:19]} Kf8 {[%emt 0:00:06]} 31. bxc4 {[%emt 0:02:07]} Re7 32. Rxe7 {[%emt 0:03:52]} Kxe7 {[%emt 0:00:13]} 33. Rb1 {[%emt 0:00:08]} Ra7 {[%emt 0:01:46]} 34. c5 {[%emt 0:00:27]} Kd7 {[%emt 0:01:14]} 35. g5 {[%emt 0:05:08]} hxg5 {[%emt 0:01:01]} 36. hxg5 Kc7 37. Rh1 {[%emt 0:03:27]} Ra8 {[%emt 0:02:07]} 38. Rh7 {[%emt 0:00:17]} Rg8 {[%emt 0:00:03]} 39. Kd3 {[%emt 0:00:20]} Kd7 {[%emt 0:01:46]} 40. Kc3 {[%emt 0:00:45]} Ke6 {[%emt 0:00:27]} 41. Kb3 {[%emt 0:00:56]} a4+ 42. Kxa4 {[%emt 0:00:46]} Ra8+ {[%emt 0:00:50]} 43. Kb3 Ra5 {[%emt 0:00:56]} 44. Rxg7 {[%emt 0:00:17]} Rxc5 {[%emt 0:00:07]} 45. g6 {[%emt 0:00:45]} Rb5+ {[%emt 0:00:02]} 46. Kc3 {[%emt 0:00:46]} fxg6 {[%emt 0:01:14]} 47. Rxg6+ {[%emt 0:00:04]} Kf7 {[%emt 0:00:29]} 48. Rh6 {[%emt 0:00:13]} Kg7 {[%emt 0:00:40]} 49. Rd6 {[%emt 0:00:15]} Kf7 {[%emt 0:00:29]} 50. a4 {[%emt 0:00:21]} Rc5+ {[%emt 0:00:24]} 51. Kb3 {[%emt 0:00:35]} Ke7 {[%emt 0:00:31]} 52. Rh6 {[%emt 0:00:16]} b6 {[%emt 0:00:33]} 53. c4 {[%emt 0:00:31]} Kd7 {[%emt 0:00:14]} 54. Rh7+ Kc8 {[%emt 0:00:16]} 55. Ra7 {[%emt 0:01:46]} Kb8 {[%emt 0:00:11]} 56. Re7 {[%emt 0:00:10]} Kc8 {[%emt 0:00:07]} 57. Kb4 {[%emt 0:00:25]} Ra5 {[%emt 0:00:12]} 58. Rf7 {[%emt 0:00:20]} Rc5 {[%emt 0:00:37]} 59. Rf5 {[%emt 0:00:49]} Ra5 60. Rh5 {[%emt 0:00:26]} Kd7 {[%emt 0:01:05]} 61. Kb3 {[%emt 0:00:32]} Kc7 {[%emt 0:00:21]} 62. Rh7+ {[%emt 0:00:33]} Kc8 {[%emt 0:00:06]} 63. Kb4 {[%emt 0:00:36]} Rc5 {[%emt 0:00:14]} 64. Rf7 {[%emt 0:00:17]} Ra5 65. Rg7 {[%emt 0:00:26]} Rc5 {[%emt 0:00:20]} 66. Rg1 Kd7 {[%emt 0:01:07]} 67. Ra1 {[%emt 0:00:46]} Ra5 {[%emt 0:00:03]} 68. Ra2 {[%emt 0:00:23]} Kc7 {[%emt 0:01:01]} 69. Rc2 {[%emt 0:00:41]} c5+ {[%emt 0:01:12]} 70. Kb3 {[%emt 0:00:07]} Ra8 {[%emt 0:00:03]} 71. Rd2 {[%emt 0:00:24]} Rf8 {[%emt 0:00:04]} 72. Rd3 Kb7 {[%emt 0:00:38]} 73. a5 {[%emt 0:01:18]} bxa5 74. Ka4 {[%emt 0:00:04]} Kc6 {[%emt 0:00:44]} 75. Rd5 {[%emt 0:00:49]} Rxf3 {[%emt 0:00:06]} 76. Rxe5 {[%emt 0:00:09]} Rc3 {[%emt 0:00:00]} 77. Re6+ {[%emt 0:00:13]} Kd7 78. Re5 {[%emt 0:00:00]} Rxc4+ {[%emt 0:01:09]} 79. Kxa5 {[%emt 0:00:27]} Kd6 {[%emt 0:01:29]} 80. Re8 1/2-1/2

[Event "25th Magistral Barcelona 2020"]
[Site "Barcelona"]
[Date "2020.12.03"]
[Round "2.3"]
[White "Grigoryan, Karen H."]
[Black "Ayats Llobera, Gerard"]
[Result "1/2-1/2"]
[ECO "E97"]
[WhiteElo "2659"]
[BlackElo "2400"]
[Annotator "ChessBase"]
[PlyCount "131"]
[EventDate "2020.12.02"]
[EventType "tourn"]
[EventCountry "ESP"]
[SourceTitle "playchess.com"]
[Source "ChessBase"]
[SourceQuality "1"]
[TimeControl "5400+30"]

1. d4 {[%emt 0:00:00]} Nf6 {[%emt 0:00:00]} 2. c4 {[%emt 0:00:00]} g6 {[%emt 0:00:00]} 3. Nc3 {[%emt 0:00:09]} Bg7 {[%emt 0:00:00]} 4. e4 {[%emt 0:01:26]} d6 {[%emt 0:00:00]} 5. Nf3 {[%emt 0:00:21]} O-O {[%emt 0:00:00]} 6. Be2 {[%emt 0:00:19]} e5 {[%emt 0:00:24]} 7. O-O {[%emt 0:00:26]} Nc6 {[%emt 0:00:22]} 8. d5 {[%emt 0:00:06]} Ne7 {[%emt 0:00:05]} 9. b4 {[%emt 0:01:18]} a5 {[%emt 0:00:20]} 10. Ba3 {[%emt 0:00:56]} axb4 {[%emt 0:01:55]} 11. Bxb4 {[%emt 0:00:06]} Re8 {[%emt 0:00:06]} 12. c5 {[%emt 0:07:25]} dxc5 {[%emt 0:00:10]} 13. Bxc5 {[%emt 0:00:06]} c6 {[%emt 0:00:15]} 14. dxc6 {[%emt 0:09:14]} Qa5 {[%emt 0:09:17]} 15. Bxe7 {[%emt 0:07:42]} Rxe7 {[%emt 0:01:22]} 16. Qb3 {[%emt 0:03:23]} bxc6 {[%emt 0:07:53]} 17. Bc4 {[%emt 0:00:16]} Ba6 {[%emt 0:30:31]} 18. Bxa6 {[%emt 0:02:07]} Qxa6 {[%emt 0:01:23]} 19. Rab1 {[%emt 0:02:34]} Nd7 {[%emt 0:12:01]} 20. Rfc1 {[%emt 0:13:49]} Bf8 {[%emt 0:10:03]} 21. Qb7 {[%emt 0:16:27]} Nc5 {[%emt 0:03:15]} 22. Qxa6 {[%emt 0:03:15]} Rxa6 {[%emt 0:00:02]} 23. Rb8 {[%emt 0:00:16]} f6 {[%emt 0:02:30]} 24. Nd2 {[%emt 0:06:56]} Kf7 {[%emt 0:03:53]} 25. Nb3 {[%emt 0:01:34]} Nxb3 {[%emt 0:04:03]} 26. axb3 {[%emt 0:02:46]} Re8 {[%emt 0:00:20]} 27. Rb7+ {[%emt 0:03:48]} Re7 {[%emt 0:00:37]} 28. Rxe7+ {[%emt 0:00:43]} Kxe7 {[%emt 0:00:42]} 29. Na4 {[%emt 0:00:11]} Kd7 {[%emt 0:01:15]} 30. Rc3 {[%emt 0:00:11]} Ra7 {[%emt 0:03:48]} 31. g4 {[%emt 0:02:54]} Rb7 {[%emt 0:00:59]} 32. Kg2 {[%emt 0:02:28]} Rb4 {[%emt 0:02:01]} 33. Kf3 {[%emt 0:00:05]} f5 {[%emt 0:02:42]} 34. gxf5 {[%emt 0:00:10]} gxf5 {[%emt 0:00:01]} 35. exf5 {[%emt 0:00:08]} Rf4+ {[%emt 0:00:08]} 36. Ke2 {[%emt 0:00:05]} Rxf5 {[%emt 0:00:22]} 37. Nb6+ {[%emt 0:00:10]} Kc7 {[%emt 0:01:22]} 38. Nd5+ {[%emt 0:00:31]} Kd6 {[%emt 0:01:29]} 39. Ne3 {[%emt 0:03:11]} Rh5 {[%emt 0:00:01]} 40. Ng4 {[%emt 0:01:57]} Rh4 {[%emt 0:01:26]} 41. h3 {[%emt 0:03:40]} Bh6 {[%emt 0:01:51]} 42. Kf1 {[%emt 0:01:32]} Bg5 {[%emt 0:00:15]} 43. Rg3 {[%emt 0:00:49]} Bf4 {[%emt 0:00:39]} 44. Rd3+ {[%emt 0:00:06]} Ke6 {[%emt 0:00:31]} 45. Kg2 {[%emt 0:02:18]} h5 {[%emt 0:00:15]} 46. Ne3 {[%emt 0:00:29]} Bxe3 {[%emt 0:00:06]} 47. Rxe3 {[%emt 0:00:38]} Rb4 {[%emt 0:00:46]} 48. Kf1 {[%emt 0:00:11]} Kf5 {[%emt 0:00:26]} 49. Rc3 {[%emt 0:01:13]} Rh4 {[%emt 0:01:41]} 50. Kg2 {[%emt 0:01:28]} Rb4 {[%emt 0:00:06]} 51. Kg3 {[%emt 0:00:08]} Kg5 {[%emt 0:00:55]} 52. Re3 {[%emt 0:01:56]} Kf5 {[%emt 0:00:09]} 53. h4 {[%emt 0:00:58]} Rg4+ {[%emt 0:00:15]} 54. Kh3 {[%emt 0:00:04]} Rf4 {[%emt 0:00:22]} 55. f3 {[%emt 0:00:14]} e4 {[%emt 0:01:29]} 56. fxe4+ {[%emt 0:00:06]} Rxe4 {[%emt 0:00:02]} 57. Rf3+ {[%emt 0:00:18]} Ke5 {[%emt 0:00:34]} 58. Rc3 {[%emt 0:00:18]} Kf4 {[%emt 0:00:25]} 59. Kg2 {[%emt 0:00:53]} Rb4 {[%emt 0:00:56]} 60. Rg3 {[%emt 0:01:08]} Rd4 {[%emt 0:00:26]} 61. Rg5 {[%emt 0:01:25]} Rd2+ {[%emt 0:00:20]} 62. Kf1 {[%emt 0:00:05]} Rb2 {[%emt 0:00:33]} 63. Rxh5 {[%emt 0:00:27]} Rxb3 {[%emt 0:00:08]} 64. Rc5 {[%emt 0:00:12]} Rh3 {[%emt 0:00:31]} 65. Rc4+ {[%emt 0:00:28]} Kg3 {[%emt 0:00:33]} 66. Rxc6 1/2-1/2